Workbook

Sheet Optionsanleihe
A1: Bedingte Kapitalerhöhung | C1: Optionsanleihe
A3: Daten der bedingten Kapitalerhöhung
A4: altes gezeichnetes Kapital in € | B4: =K5 -> 800000000 | C4: aus Bilanz vor Optionsanleihe | H4: Aktiva | I4: Bilanz vor Optionsanleihe | K4: Passiva
A5: Aktiennennwert in € | B5: 1 | H5: Anlagevermögen | I5: 840000000 | J5: gez. Kapital | K5: 800000000
A6: Anleihebetrag in € | B6: 200000000 | C6: Gesamtbetrag der Opitonsanleihe | H6: sonst. Umlaufvermögen | I6: 240000000 | J6: Rücklagen | K6: =K9-K5-K7-K8 -> 80000000
A7: Nominalverzinsung p.a. | B7: 0.04 | H7: liquide Mittel | I7: 1000000 | J7: langfr. Fremdkapital | K7: 200000000
A8: Laufzeit in Jahren | B8: 8 | J8: kurzfr. Fremdkapital | K8: 1000000
A9: Emmissionkurs mit Optionsrecht in % | B9: 100 | I9: =SUM(I5:I7) -> 1081000000 | K9: =I9 -> 1081000000
A10: Kleinste Stückelung in € | B10: 200 | C10: Mindestbetrag einer Anleihe | H10: Bilanzsumme und Rücklagen werden berechnet
A11: rechnerischer Kurs ohne Optionsrecht in % | B11: 100
A12: Optionsrecht an Aktien in Stück | B12: 100 | C12: für | D12: =B10 -> 200 | E12: Optionsanleihe | H12: Aktiva | I12: Bilanz nach Ausgabe der Anleihe | K12: Passiva
A13: Optionspreis für eine Aktie in € | B13: 8.05 | H13: Anlagevermögen | I13: =I5 -> 840000000 | J13: gez. Kapital | K13: =K5 -> 800000000
A14: Optionsrecht wird ausgeübt von Inhabern von | B14: 50000000 | C14: € | D14: Optionsscheinen | H14: sonst. Umlaufvermögen | I14: =I6 -> 240000000 | J14: Rücklagen | K14: =K17-K13-K15-K16 -> 80000000
A15: Anzahl Altaktien eines Aktionärs in Stück | B15: 600 | H15: liquide Mittel | I15: =I7+B6 -> 201000000 | J15: langfr. Fremdkapital | K15: =K7+B6 -> 400000000
A16: Zeichnung Optionsanleihe des Aktionärs in € | B16: 2000 | J16: kurzfr. Fremdkapital | K16: =K8 -> 1000000
I17: =SUM(I13:I15) -> 1281000000 | K17: =I17 -> 1281000000
A18: Berechnungen für die AG
A19: Bezugsverhältnis für die Opitonsanleihe | B19: =B4/B6 -> 4 | C19: gezeichnetes Kapital/Anleihebetrag
A20: Anzahl neuer Aktien | B20: =(B6*B12)/B10 -> 100000000 | C20: (Anleihebetrag * Optionsrecht an Aktien in Stück)/kleinste Stückelung
A21: Bedingtes Kapital | B21: =B20*B5 -> 100000000 | C21: Anzahl neuer Aktien * Nennwert | H21: Aktiva | I21: Bilanz nach Optionsrechtswahrnehmung | K21: Passiva
A22: benötigter Aktiennennwert für Optionsanleihe | B22: =ROUNDUP(B16*B19,0) -> 8000 | C22: Zeichnung Opitonsanleihe * Bezugsverhältnis; aufgerundet | H22: Anlagevermögen | I22: =I13 -> 840000000 | J22: gez. Kapital | K22: =K5+B32 -> 825000000
A23: benötigte Bezugsrechte in Stück | B23: =ROUNDUP(B22/B5,0) -> 8000 | C23: benötigter Aktiennennwert/Nennwert; aufgerundet | H23: sonst. Umlaufvermögen | I23: =I14 -> 240000000 | J23: Rücklagen | K23: =K26-K22-K24-K25 -> 256250000
A24: vorhandene Bezugsrechte | B24: =B15 -> 600 | C24: Anzahl der Altakien | H24: liquide Mittel | I24: =I15+(B13*B30) -> 402250000 | J24: langfr. Fremdkapital | K24: =K15 -> 400000000
A25: Kauf bzw. Verkauf von Bezugsrechten | B25: =B23-B24 -> 7400 | C25: benötige Bezugsrechte - vorhandene Bezugsreche | J25: kurzfr. Fremdkapital | K25: =K16 -> 1000000
A26: Preis für kleinste Stückelung m. O. | B26: =B10*B9/100 -> 200 | C26: kleinste Stückelung * Kurs m.O. | I26: =SUM(I22:I24) -> 1482250000 | K26: =I26 -> 1482250000
A27: Preis für kleinste Stückelung o. O. | B27: =B10*B11/100 -> 200 | C27: kleinste Stückelung * Kurs o.O.
A28: Aufwand für den Opitonsrechtserwerb | B28: =B26-B27 -> 0 | C28: für | D28: =B12 -> 100 | E28: Stück | F28: Differenz für kleinste Stückelung
A29: Aufwand für den Erwerb eines Opitonsrechtes | B29: =B28/D28 -> 0 | C29: für | D29: 1 | E29: Opitonsrecht | F29: Aufwand/kleinste Stückelung | H29: Aktiva | I29: Bilanz nach Rückzahlung der Anleihe | K29: Passiva
A30: Anzahl der Aktien | B30: =B14*B12/B10 -> 25000000 | C30: Anzahl der gewandelten Aktien | H30: Anlagevermögen | I30: =I5 -> 840000000 | J30: gez. Kapital | K30: =K13+B32 -> 825000000
A31: Bezugsverhältnis der Kapitalerhöhung | B31: =B4/B32 -> 32 | C31: gezeichnetes Kapital : Kapitalerhöhung | H31: sonst. Umlaufvermögen | I31: =I6 -> 240000000 | J31: Rücklagen | K31: =K34-K30-K32-K33 -> 256250000
A32: Erhöhrung des gezeichneten Kapitals | B32: =B30*B5 -> 25000000 | C32: Anzahl der gewandelten Aktien * Nennwert | H32: liquide Mittel | I32: =I24-B6 -> 202250000 | J32: langfr. Fremdkapital | K32: =K24-B6 -> 200000000
A33: Erhöhung der liquiden Mittel | B33: =B30*B13 -> 201250000 | C33: Anzahl der gewandelten Aktien * Optionspreis (Kurs) | J33: kurzfr. Fremdkapital | K33: =K25 -> 1000000
A34: Erhöhung der Kapitalrücklage | B34: =B33-B32 -> 176250000 | C34: liquide Mittel - Erhöhung des gez. Kapitals | I34: =SUM(I30:I32) -> 1282250000 | K34: =I34 -> 1282250000
A36: Berechnungen für den Aktionär | H36: Bilanzentwicklung ohne Berücksichtigung von Zinszahlungen
A37: Umwandlung aufgrund Opitonsscheinen | B37: =INT(B16*B12/B10) -> 1000 | C37: Verhältnis Opitonsrecht : Zeichnung
A38: Ausgabe für Aktienbezug | B38: =B37*B13 -> 8050 | C38: Aktienzahl * Kurs
A39: Aufwand für eine Aktie m.O. | B39: =B13+B29 -> 8.05 | C39: Kurs + Aufwand für 1 Optionsrecht
A40: Aufwand für den Bezug aller Aktien | B40: =B39*B37 -> 8050 | C40: Aufwand für eine Aktie m.O.*Aktienanzahl
A41: Jahresverzingsung für gezeichnete Anleihe | B41: =B16*B7 -> 80 | C41: Verzingsung für B15
